[Event "39th Citta Arco Open 2017"]
[Site "Arco"]
[Date "2017.10.11"]
[Round "5.16"]
[White "Huemmer, Bernd"]
[Black "Deissenberger, Thomas"]
[Result "1-0"]
[ECO "A39"]
[WhiteElo "2169"]
[BlackElo "2032"]
[Annotator "NA"]
[PlyCount "85"]
[EventDate "2017.??.??"]
[EventType "swiss"]
[EventCountry "ITA"]
[SourceTitle "playchess.com"]
[Source "ChessBase"]
[SourceQuality "1"]
[TimeControl "40/5400+30:1800+30"]

1. c4 {[%emt 0:00:30]} Nf6 {[%emt 0:01:00]} 2. Nc3 {[%emt 0:00:00]} c5 {[%emt 0:00:30]} 3. Nf3 {[%emt 0:00:00]} Nc6 {[%emt 0:01:30]} 4. d4 {[%emt 0:01:30]} cxd4 {[%emt 0:00:30]} 5. Nxd4 {[%emt 0:00:30]} g6 {[%emt 0:01:30]} 6. g3 {[%emt 0:00:00]} Bg7 {[%emt 0:03:30]} 7. Bg2 {[%emt 0:00:00]} O-O {[%emt 0:01:30]} 8. O-O {[%emt 0:00:30]} Nxd4 {[%emt 0:02:30]} 9. Qxd4 {[%emt 0:00:00]} d6 {[%emt 0:01:30]} 10. Qh4 {[%emt 0:01:00] LiveBook: 109 Games} Rb8 {[%emt 0:11:30]} 11. Bg5 {[%emt 0:02:30] A39: Symmetrical English vs ...g6: 4 Bg2 Bg7 5 Nf3 Nf6 6 0-0 0-0 7 d4} (11. h3 Be6 12. Be3 Qa5 13. Rac1 Rfc8 14. b3 a6 15. Qg5 b5 16. Ba7 Ra8 17. Bd4 h6 18. Qe3 bxc4 19. Bxa8 Rxa8 20. bxc4 Bxh3 21. Qxe7 {1-0 (31) Koneru,H (2621)-Danielian,E (2496) Istanbul 2009}) 11... Re8 {[%emt 0:04:30]} 12. Rac1 {[%emt 0:04:30]} Qa5 {[%emt 0:13:30]} 13. Rfd1 {[%emt 0:03:30]} Bd7 {[%emt 0:09:30]} 14. Bd2 $146 {[%emt 0:26:30]} ({Predecessor:} 14. a3 Bc6 15. e4 a6 16. h3 Rbc8 17. c5 dxc5 18. e5 Bxg2 19. Kxg2 {1-0 (57) Pacuszka,T (2284)-Madera,M (2021) Kolobrzeg 2009}) 14... Qh5 {[%emt 0:06:30]} 15. Qxh5 {[%emt 0:01:30]} Nxh5 {[%emt 0:00:00]} 16. Be3 {[%emt 0:00:30]} b6 {[%emt 0:04:00]} 17. b3 {[%emt 0:01:30]} Rec8 {[%emt 0:07:30]} 18. Nd5 {[%emt 0:04:30]} Kf8 {[%emt 0:06:30]} 19. Nb4 {[%emt 0:00:30]} Bf5 {[%emt 0:08:16]} 20. Rd2 {[%emt 0:15:30]} Bd7 {[%emt 0:08:40]} 21. Na6 {[%emt 0:01:30]} Nf6 {[%emt 0:00:34]} 22. Nxb8 {[%emt 0:00:30]} Rxb8 {[%emt 0:00:02]} 23. h3 {[%emt 0:02:30]} Be6 {[%emt 0:00:45]} 24. Bd4 {[%emt 0:00:30]} Nd7 {[%emt 0:01:57]} 25. Bxg7+ {[%emt 0:00:00]} Kxg7 {[%emt 0:00:02]} 26. f4 {[%emt 0:01:00]} a5 {[%emt 0:01:47]} 27. Kh2 {[%emt 0:04:30]} Nc5 {[%emt 0:01:05]} 28. Rb2 {[%emt 0:02:30]} b5 {[%emt 0:01:55]} 29. cxb5 {[%emt 0:00:30]} Rxb5 {[%emt 0:00:10]} 30. Rd2 {[%emt 0:01:30]} Rb6 {[%emt 0:01:16]} 31. Rd4 {[%emt 0:01:30]} f6 {[%emt 0:01:13]} 32. e4 {[%emt 0:01:30]} Bc8 {[%emt 0:00:35]} 33. e5 {[%emt 0:02:30]} Kf7 {[%emt 0:00:39]} 34. Bd5+ {[%emt 0:01:30]} Be6 {[%emt 0:00:31]} 35. exd6 {[%emt 0:00:39]} exd6 {[%emt 0:00:14]} 36. Bxe6+ {[%emt 0:00:36]} Kxe6 {[%emt 0:00:13]} 37. Re1+ {[%emt 0:00:49]} Kf7 {[%emt 0:00:22]} 38. Rd2 {[%emt 0:01:52]} Kf8 {[%emt 0:00:35]} 39. Rde2 {[%emt 0:00:15]} Rb7 {[%emt 0:01:04]} 40. Re8+ {[%emt 0:00:23]} Kf7 {[%emt 0:30:10]} 41. Rh8 {[%emt 0:00:00]} Kg7 {[%emt 0:00:00]} 42. Rd8 $18 {[%emt 0:03:26]} Rb6 {[%emt 0:00:00]} 43. Re7+ {[%emt 0:00:30]} 1-0